bitfinex/quotes_SOLUSD_20250722
["timestamp","ask_amount","ask_price","bid_price","bid_amount"]
[1753225192892,0.83216157,202.02,202.01,35.0]
[1753225193089,0.83216157,202.02,202.01,35.03]
[1753225193715,5.78216652,202.02,202.01,35.03]
[1753225199812,0.83216157,202.02,202.01,35.03]
[1753225200397,0.69,202.02,202.01,37.85257107]
[1753225200810,0.68,202.03,202.01,37.85257107]
[1753225201085,0.68,202.03,202.02,2.82257107]
[1753225202184,0.20216157,202.05,202.02,2.82257107]
[1753225202393,0.68,202.04,202.03,35.0]
[1753225203025,0.68,202.04,202.03,37.82257107]
[1753225203194,0.20216157,202.05,202.03,39.40822591]
[1753225203195,0.06,202.05,202.03,39.40822591]
[1753225203392,0.06,202.05,202.04,4.40822591]
[1753225203629,0.06,202.05,202.04,4.44822591]
[1753225204120,0.06,202.05,202.04,4.40822591]
[1753225204325,0.74,202.05,202.03,39.94969427]
[1753225204627,0.06,202.05,202.04,4.40822591]
[1753225205030,0.06,202.05,202.04,35.0]
[1753225205316,0.74,202.05,202.01,4.43822591]
[1753225205491,0.74,202.05,202.02,35.0]
[1753225205890,0.74,202.05,202.03,35.0]
[1753225207027,0.88216157,202.05,202.04,35.0]
[1753225207202,5.83143155,202.05,202.04,35.0]
[1753225207398,0.88216157,202.05,202.04,35.0]
[1753225207994,0.06,202.05,202.04,39.40822591]
[1753225208506,0.74,202.05,202.04,35.0]
[1753225209110,0.74,202.05,202.04,34.98]
[1753225210801,0.88216157,202.05,202.04,34.98]
[1753225213017,0.06,202.05,202.04,39.38822591]
[1753225213415,0.06,202.05,202.04,44.33774085]
[1753225215428,0.06,202.05,202.04,34.98]
[1753225215735,0.74,202.05,202.04,39.38822591]
[1753225216927,0.06,202.05,202.04,39.38822591]
[1753225218404,0.78,202.05,202.04,39.38822591]
[1753225219823,0.78,202.05,202.04,34.98]
[1753225220304,0.78,202.05,202.03,4.40822591]
[1753225220507,0.78,202.05,202.04,34.98]
[1753225221405,0.92216157,202.05,202.04,34.98]
[1753225222623,5.87143155,202.05,202.04,34.98]
[1753225222824,22.65611552,202.05,202.04,34.98]
[1753225223928,17.70684554,202.05,202.04,34.98]
[1753225224243,22.65611552,202.05,202.04,34.98]
[1753225224606,17.70684554,202.05,202.04,34.98]
[1753225225218,22.65611552,202.05,202.04,34.98]
[1753225226323,0.14216157,202.04,202.02,0.03]
[1753225226530,0.14216157,202.04,202.03,34.98]
[1753225227233,0.86216157,202.04,202.03,34.98]
[1753225227833,0.86216157,202.04,202.02,4.43822591]
[1753225228030,0.86216157,202.04,202.03,34.98]
[1753225228233,5.81167651,202.04,202.02,0.03]
[1753225228426,0.86216157,202.04,202.03,34.98]
[1753225230740,0.72,202.04,202.03,39.38822591]
[1753225232818,0.06,202.05,202.03,34.98]
[1753225233036,0.06,202.05,202.04,4.44822591]
[1753225234917,0.06,202.05,202.04,9.39774085]
[1753225236226,0.06,202.09,202.04,22.2664797]
[1753225236422,0.06,202.09,202.08,4.40822591]
[1753225236629,0.06,202.09,202.08,39.36822591]
[1753225236939,0.06,202.09,202.08,44.31676114]
[1753225240030,0.06,202.09,202.08,39.90853523]
[1753225240356,0.06,202.09,202.08,44.31676114]
[1753225240941,0.78,202.09,202.08,34.96]
[1753225241151,0.78,202.09,202.08,39.36822591]
[1753225241656,0.06,202.09,202.08,39.36822591]
[1753225242852,0.78,202.09,202.08,39.36822591]
[1753225243155,0.78,202.09,202.08,4.40822591]
[1753225243352,0.78,202.09,202.08,39.36822591]
[1753225243952,0.78,202.09,202.04,0.03]
[1753225244130,0.78,202.09,202.05,34.96]
[1753225244628,0.78,202.09,202.08,4.40822591]
[1753225244829,0.78,202.09,202.08,39.36822591]
[1753225247858,0.78,202.09,202.08,34.96]
[1753225248455,5.87045193,202.09,202.08,34.96]
[1753225254338,0.92216157,202.09,202.08,34.96]
[1753225254974,0.92216157,202.09,202.08,39.36822591]
[1753225255466,5.87045193,202.09,202.08,34.96]
[1753225255683,0.92216157,202.09,202.08,34.96]
[1753225255835,0.92216157,202.09,202.08,39.36822591]
[1753225256843,0.92216157,202.09,202.08,34.96]
[1753225257467,5.87045193,202.09,202.08,34.96]
[1753225261437,5.87045193,202.09,202.05,0.03]
[1753225261438,16.92684554,202.08,202.05,0.03]
[1753225261644,17.62684554,202.08,202.06,34.94]
[1753225261859,0.84216157,202.07,202.06,34.94]
[1753225262242,5.79094169,202.07,202.06,34.94]
[1753225264381,16.92684554,202.06,202.04,0.03]
[1753225264668,17.62684554,202.06,202.05,34.94]
[1753225265847,0.84216157,202.06,202.05,34.94]
[1753225266053,0.84216157,202.06,202.05,39.34822591]
[1753225267058,5.79118661,202.06,202.05,34.94]
[1753225270752,0.84216157,202.06,202.05,34.94]
[1753225270955,26.0,202.08,202.05,34.94]
[1753225270956,21.8754264,202.08,202.05,39.34822591]
[1753225271156,0.7,202.07,202.05,39.34822591]
[1753225271761,5.64879632,202.07,202.05,39.34822591]
[1753225272073,0.7,202.06,202.05,39.34822591]
[1753225273462,0.06,202.09,202.05,39.34822591]
[1753225273773,5.70829786,202.09,202.07,4.40822591]
[1753225274073,5.85045943,202.09,202.08,34.94]
[1753225274268,0.90216157,202.09,202.08,34.94]
[1753225274569,0.20216157,202.09,202.08,39.34822591]
[1753225274950,0.06,202.09,202.08,39.34822591]
[1753225278149,0.06,202.09,202.08,39.38822591]
[1753225278961,0.06,202.09,202.08,39.34822591]
[1753225280455,0.77,202.09,202.08,39.34822591]
[1753225280660,0.06,202.09,202.08,39.34822591]
[1753225281251,0.77,202.09,202.05,6.0037]
[1753225281453,0.06,202.09,202.07,4.40822591]
[1753225281662,0.06,202.09,202.08,39.32822591]
[1753225282673,0.06,202.09,202.08,39.36822591]
[1753225282878,0.06,202.09,202.08,51.37645182]
[1753225284379,0.06,202.09,202.08,56.32498705]
[1753225284762,0.06,202.1,202.08,56.32498705]
[1753225284966,0.06,202.1,202.09,9.31128085]
[1753225285181,0.06,202.1,202.09,16.95128085]
[1753225287181,0.06,202.1,202.09,21.89957121]
[1753225287572,0.06,202.1,202.09,42.52]
[1753225287771,0.06,202.1,202.09,46.92822591]
[1753225287969,0.06,202.1,202.09,56.32474218]
[1753225289683,0.06,202.1,202.09,48.72474218]
[1753225290965,0.06,202.12,202.09,48.72474218]
[1753225291287,0.06,202.12,202.11,9.35602661]
[1753225291483,0.06,202.12,202.11,44.25602661]
[1753225291781,0.06,202.12,202.11,44.29602661]
[1753225293885,0.06,202.12,202.11,51.89602661]
[1753225295675,0.06,202.12,202.11,47.4878007]
[1753225295875,0.06,202.12,202.11,51.89602661]
[1753225297890,0.06,202.12,202.11,47.4478007]
[1753225298080,0.06,202.12,202.11,52.35080668]
[1753225298469,0.06,202.12,202.11,47.94258077]
[1753225298792,0.06,202.12,202.11,52.39080668]
[1753225298991,0.06,202.14,202.13,4.40822591]
[1753225299177,0.06,202.14,202.13,39.30822591]
[1753225299376,0.06,202.14,202.13,39.84295702]
[1753225300290,0.06,202.14,202.13,44.79026815]
[1753225300792,0.06,202.15,202.14,4.40822591]
[1753225300966,0.06,202.15,202.14,4.44822591]
[1753225302297,0.06,202.15,202.14,9.39529229]
[1753225303584,0.2,202.17,202.14,9.39529229]
[1753225303798,0.06,202.18,202.17,8.81645182]
[1753225303974,0.06,202.18,202.17,43.69645182]
[1753225304177,0.06,202.18,202.17,39.28822591]
[1753225304593,0.2,202.2,202.17,43.73645182]
[1753225304804,0.2,202.2,202.19,8.81645182]
[1753225304973,0.2,202.2,202.19,43.69645182]
[1753225305473,0.71,202.25,202.19,48.68229483]
[1753225305694,0.71,202.25,202.2,8.85645182]
[1753225305886,42.98468397,202.3,202.2,9.35101166]
[1753225305887,0.71,202.27,202.2,9.35101166]
[1753225306090,0.71,202.27,202.25,4.40822591]
[1753225306294,0.71,202.27,202.25,39.28822591]
[1753225306598,0.71,202.29,202.25,39.28822591]
[1753225307689,0.87,202.26,202.25,39.28822591]
[1753225310401,0.2,202.26,202.25,39.28822591]
[1753225310610,0.2,202.26,202.25,44.23260168]
[1753225312097,0.2,202.26,202.25,51.83260168]
[1753225312508,0.2,202.26,202.25,51.87260168]
[1753225312711,0.2,202.3,202.25,51.87260168]
[1753225312891,0.2,202.3,202.29,4.40822591]
[1753225313086,0.87,202.3,202.29,39.28822591]
[1753225315502,5.81330829,202.3,202.29,34.86]
[1753225315707,5.81330829,202.3,202.27,4.40822591]
[1753225315897,0.67,202.29,202.28,34.86]
[1753225316702,0.67,202.29,202.28,39.26822591]
[1753225317194,0.67,202.29,202.28,34.86]
[1753225317392,5.61339809,202.29,202.28,34.86]
[1753225318211,0.67,202.29,202.28,39.26822591]
[1753225319813,5.61339809,202.29,202.28,39.26822591]
[1753225319990,5.61339809,202.29,202.28,34.86]
[1753225320719,5.75555966,202.29,202.28,34.86]
[1753225325913,0.67,202.29,202.28,39.26822591]
[1753225326221,0.73,202.29,202.28,39.26822591]
[1753225326611,0.73,202.29,202.28,34.86]
[1753225327224,0.73,202.29,202.28,39.26822591]
[1753225327596,0.06,202.29,202.28,44.21186838]
[1753225327920,0.06,202.29,202.28,56.26009429]
[1753225328123,0.06,202.29,202.28,56.75445853]
[1753225329523,0.06,202.29,202.28,12.00822591]
[1753225329705,0.06,202.29,202.28,46.84822591]
[1753225330112,0.06,202.29,202.28,51.79186838]
[1753225330513,0.06,202.29,202.28,46.84822591]
[1753225330829,0.06,202.29,202.28,51.79186838]
[1753225331002,0.06,202.29,202.28,44.19186838]
[1753225331201,0.06,202.29,202.28,39.24822591]
[1753225331921,0.06,202.29,202.28,44.19186838]
[1753225332722,0.06,202.29,202.28,48.64009429]
[1753225333028,0.2,202.3,202.28,48.64009429]
[1753225333238,0.2,202.3,202.29,8.85645182]
[1753225333827,0.2,202.3,202.29,13.79984991]
[1753225334404,0.2,202.3,202.29,14.29418971]
[1753225336517,0.2,202.3,202.29,14.25418971]
[1753225336721,0.2,202.3,202.29,14.29418971]
[1753225336922,0.2,202.3,202.29,21.89418971]
[1753225342002,0.2,202.3,202.29,21.39984991]
[1753225342208,0.2,202.3,202.29,21.35984991]
[1753225342929,0.2,202.3,202.29,21.39984991]
[1753225345117,0.2,202.3,202.29,27.63864991]
[1753225350213,0.06,202.35,202.29,39.99714513]
[1753225350417,0.72,202.35,202.34,4.40822591]
[1753225350634,0.72,202.35,202.34,39.22822591]
[1753225352370,0.72,202.35,202.34,4.40822591]
[1753225352663,0.72,202.35,202.34,39.22822591]
[1753225356457,0.72,202.35,202.34,34.82]
[1753225356643,0.72,202.35,202.34,39.22822591]
[1753225360282,0.06,202.35,202.34,44.17040244]
[1753225362777,0.06,202.35,202.34,44.21040244]
[1753225363575,0.06,202.35,202.34,51.77040244]
[1753225363933,0.06,202.35,202.34,51.81040244]
[1753225364865,0.06,202.35,202.34,51.77040244]
[1753225368566,0.77,202.35,202.34,46.78822591]
[1753225368765,0.77,202.35,202.34,51.73040244]
[1753225369469,0.77,202.35,202.34,39.18822591]
[1753225372061,0.77,202.35,202.34,44.13040244]
[1753225372851,0.06,202.35,202.34,44.13040244]
[1753225373167,0.77,202.35,202.34,44.13040244]
[1753225373843,0.06,202.35,202.34,44.13040244]
[1753225375456,0.06,202.35,202.34,51.73040244]
[1753225375655,0.06,202.35,202.34,51.77040244]
[1753225376550,0.06,202.38,202.34,90.62006142]
[1753225376764,0.06,202.38,202.37,30.40822591]
[1753225377073,0.06,202.38,202.37,70.62381417]
[1753225377364,0.06,202.38,202.37,75.03204008]
[1753225377560,0.06,202.38,202.37,70.62381417]
[1753225380952,0.06,202.38,202.3,9.606235]
[1753225380953,0.77,202.38,202.3,9.606235]
[1753225381159,0.77,202.38,202.32,4.40822591]
[1753225381470,4.40822591,202.37,202.3,7.63]
[1753225381678,0.71,202.36,202.31,34.76]
[1753225382059,5.11822591,202.36,202.3,0.03]
[1753225382371,0.71,202.35,202.31,34.76]
[1753225382547,0.71,202.35,202.31,39.16822591]
[1753225382548,26.71,202.35,202.31,39.16822591]
[1753225382750,0.71,202.34,202.31,39.16822591]
[1753225383382,0.71,202.34,202.31,34.76]
[1753225387170,0.71,202.34,202.31,39.16822591]
[1753225388572,0.71,202.34,202.31,44.11105514]
[1753225388766,0.06,202.38,202.33,4.40822591]
[1753225388972,0.06,202.38,202.37,4.40822591]
[1753225389181,0.06,202.38,202.37,39.16822591]
[1753225389679,0.06,202.38,202.37,44.10966979]
[1753225401285,0.06,202.39,202.37,48.5578957]
[1753225401494,0.06,202.39,202.38,9.35057179]
[1753225402176,0.76,202.43,202.39,4.94095558]
[1753225402177,0.06,202.43,202.39,4.94095558]
[1753225402372,0.06,202.43,202.42,4.40822591]
[1753225402599,0.06,202.43,202.42,39.16822591]
[1753225402960,0.76,202.43,202.42,34.76]
[1753225403201,0.76,202.43,202.42,39.16822591]
[1753225406003,0.76,202.43,202.42,44.1084492]
[1753225406004,0.06,202.43,202.42,44.1084492]
[1753225408094,0.76,202.43,202.42,51.7084492]
[1753225408276,0.76,202.43,202.42,7.6]
[1753225408476,0.76,202.43,202.42,42.34]
[1753225408697,0.76,202.43,202.42,46.74822591]
[1753225413804,0.76,202.43,202.42,39.14822591]
[1753225416310,0.06,202.43,202.42,39.14822591]
[1753225417097,0.06,202.43,202.42,44.0884492]
[1753225418700,0.06,202.43,202.42,51.6884492]
[1753225420204,0.06,202.43,202.42,52.18247152]
[1753225420502,0.06,202.43,202.42,51.6884492]
[1753225420692,0.06,202.43,202.42,51.7284492]
[1753225421501,0.06,202.43,202.42,51.7084492]
[1753225425906,0.06,202.44,202.42,124.12313317]
[1753225426111,0.06,202.44,202.43,4.94222383]
[1753225427113,0.06,202.44,202.43,9.88220308]
[1753225429025,0.06,202.46,202.43,9.88220308]
[1753225429207,0.06,202.46,202.45,4.40822591]
[1753225429388,0.06,202.46,202.45,12.00822591]
[1753225429593,0.06,202.46,202.45,54.83290988]
[1753225429794,0.06,202.48,202.46,6.2641]
[1753225430007,0.06,202.48,202.47,70.03035215]
[1753225430291,0.06,202.48,202.47,70.07035215]
[1753225430916,0.06,202.48,202.47,75.00935545]
[1753225431099,1.5153,202.6,202.47,94.95686372]
[1753225431100,0.72,202.55,202.47,94.95686372]
[1753225431301,0.72,202.55,202.54,4.40822591]
[1753225431493,0.72,202.55,202.54,39.10822591]
[1753225435607,0.06,202.57,202.54,44.04552224]
[1753225435811,0.78,202.57,202.56,4.40822591]
[1753225436014,0.06,202.57,202.56,39.10822591]
[1753225436220,0.06,202.57,202.56,34.7]
[1753225436521,0.78,202.57,202.56,34.7]
[1753225436706,0.78,202.57,202.56,39.10822591]
[1753225438720,0.78,202.57,202.56,34.7]
[1753225441518,0.78,202.57,202.56,39.10822591]
[1753225442826,0.78,202.57,202.56,34.7]
[1753225443124,10.12479104,202.57,202.56,34.68]
[1753225444518,5.71656513,202.57,202.56,34.68]
[1753225445115,27.05163658,202.57,202.56,34.68]
[1753225447136,22.64341067,202.57,202.56,34.68]
[1753225448442,0.06,202.57,202.56,39.08822591]
[1753225448630,0.06,202.57,202.56,44.02503475]
[1753225449005,0.06,202.57,202.56,44.06503475]
[1753225450707,0.06,202.57,202.56,44.02503475]
[1753225451314,0.06,202.57,202.56,44.06503475]
[1753225452229,0.06,202.57,202.56,51.66503475]
[1753225454818,0.06,202.57,202.56,51.62503475]
[1753225455036,0.06,202.57,202.56,47.21680884]
[1753225455236,0.06,202.57,202.56,51.62503475]
[1753225458136,0.06,202.57,202.56,51.60503475]
[1753225458336,0.77,202.57,202.56,51.60503475]
[1753225460327,0.06,202.57,202.56,51.60503475]
[1753225462029,0.77,202.57,202.56,51.60503475]
[1753225462235,0.77,202.57,202.49,6.4409]
[1753225462530,0.77,202.57,202.5,34.66]
[1753225462736,0.77,202.57,202.52,4.40822591]
[1753225462930,0.77,202.57,202.53,34.66]
[1753225463137,0.77,202.57,202.54,4.40822591]
[1753225463437,0.77,202.57,202.55,34.66]
[1753225463640,0.77,202.57,202.56,34.66]
[1753225463844,5.70656513,202.57,202.56,34.66]
[1753225464349,0.77,202.57,202.56,34.66]
[1753225466851,5.70656513,202.57,202.56,34.66]
[1753225468060,10.11479104,202.57,202.56,34.66]
[1753225468270,0.77,202.57,202.56,34.66]
[1753225468836,10.11479104,202.57,202.56,34.66]
[1753225470430,5.70656513,202.57,202.56,34.66]
[1753225470637,0.77,202.57,202.56,34.66]
[1753225478572,5.70656513,202.57,202.56,34.66]
[1753225478964,0.77,202.57,202.56,34.66]
[1753225479679,5.70656513,202.57,202.56,34.66]
[1753225480343,10.25695261,202.57,202.49,7.6]
[1753225480646,10.25695261,202.57,202.5,39.06822591]
[1753225480647,5.11822591,202.56,202.5,39.06822591]
[1753225480845,4.40822591,202.53,202.49,7.6]
[1753225481063,0.71,202.52,202.5,34.66]
[1753225482248,0.71,202.52,202.48,0.03]
[1753225482465,5.64779797,202.52,202.49,34.66]
[1753225482748,0.71,202.51,202.49,34.66]
[1753225483002,4.93779797,202.52,202.49,34.66]
[1753225483168,0.71,202.51,202.49,39.06822591]
[1753225483349,0.71,202.53,202.5,4.40822591]
[1753225483549,0.71,202.53,202.52,4.40822591]
[1753225483750,0.71,202.53,202.52,39.04822591]
[1753225484151,0.71,202.53,202.52,34.64]
[1753225484459,5.64705329,202.55,202.52,39.04822591]
[1753225484963,0.14216157,202.56,202.52,39.04822591]
[1753225485166,0.85216157,202.56,202.52,39.04822591]
[1753225485370,0.71,202.56,202.53,4.40822591]
[1753225485764,5.6468327,202.56,202.53,4.40822591]
[1753225486352,0.71,202.56,202.53,4.40822591]
[1753225487374,0.68,202.56,202.53,4.40822591]
[1753225487884,0.68,202.56,202.52,34.64]
[1753225488066,0.68,202.56,202.53,4.40822591]
[1753225488874,0.68,202.56,202.52,34.64]
[1753225489182,0.68,202.56,202.53,4.40822591]
[1753225491587,0.20216157,202.57,202.53,4.40822591]
[1753225491756,0.68,202.55,202.53,4.40822591]
[1753225492071,0.06,202.57,202.54,4.40822591]
[1753225492277,0.06,202.57,202.56,4.40822591]
[1753225492660,0.06,202.57,202.56,4.44822591]
[1753225493773,0.06,202.57,202.56,9.38503475]
[1753225494277,0.06,202.57,202.56,9.34503475]
[1753225494973,0.06,202.57,202.56,9.38503475]
[1753225495569,0.06,202.57,202.56,34.64]
[1753225495774,0.06,202.57,202.56,39.04822591]
[1753225495978,0.06,202.57,202.56,44.02503475]
[1753225496182,0.06,202.57,202.56,43.98503475]
[1753225496549,0.06,202.57,202.56,44.02503475]
[1753225499683,0.06,202.57,202.52,19.94401412]
[1753225499684,0.74,202.57,202.52,7.6]
[1753225499861,0.74,202.57,202.53,34.64]
[1753225500257,0.74,202.57,202.53,39.04822591]
[1753225501888,0.68,202.56,202.55,4.40822591]
[1753225502076,0.68,202.56,202.55,34.64]
[1753225502788,0.68,202.56,202.55,39.04822591]
[1753225502964,0.06,202.57,202.55,51.58527848]
[1753225503165,0.06,202.57,202.56,4.40822591]
[1753225504086,0.06,202.57,202.56,9.34503475]
[1753225505191,0.06,202.57,202.56,9.38503475]
[1753225506773,0.06,202.57,202.56,4.97680884]
[1753225506972,0.06,202.57,202.56,9.38503475]
[1753225507174,0.06,202.57,202.56,16.98503475]
[1753225508005,0.06,202.57,202.56,51.60503475]
[1753225508190,0.06,202.57,202.56,16.98503475]
[1753225508395,0.06,202.57,202.56,51.60503475]
[1753225509398,0.06,202.57,202.56,16.98503475]
[1753225509590,0.06,202.57,202.56,51.60503475]
[1753225510393,0.06,202.57,202.56,51.56503475]
[1753225512386,0.06,202.57,202.56,51.60503475]
[1753225513084,0.06,202.57,202.56,51.56503475]
[1753225515309,0.06,202.57,202.56,16.94503475]
[1753225515594,0.06,202.57,202.56,51.56503475]
[1753225523008,0.06,202.57,202.56,51.60503475]
[1753225523895,0.06,202.57,202.56,51.56503475]
[1753225527506,0.06,202.57,202.56,51.60503475]
[1753225528591,0.06,202.57,202.56,51.56503475]
[1753225529906,0.06,202.57,202.56,51.60503475]
[1753225531707,0.06,202.62,202.59,26.0]
[1753225531908,0.06,202.62,202.61,4.40822591]
[1753225533702,0.06,202.62,202.61,9.34381645]
[1753225534106,0.06,202.62,202.61,16.94381645]
[1753225534299,0.06,202.62,202.61,16.98381645]
[1753225535538,0.74,202.66,202.61,29.3227928]
[1753225535719,0.74,202.66,202.65,4.40822591]
[1753225535920,0.74,202.66,202.65,39.00822591]
[1753225537121,0.74,202.66,202.65,43.94284224]
[1753225538221,0.06,202.66,202.65,43.94284224]
[1753225540311,0.06,202.66,202.65,39.00822591]
[1753225540312,0.74,202.66,202.65,39.00822591]
[1753225540819,0.06,202.66,202.65,39.00822591]
[1753225541530,0.06,202.66,202.65,43.94284224]
[1753225541921,0.74,202.66,202.61,7.6]
[1753225542107,0.74,202.66,202.65,4.40822591]
[1753225542303,0.74,202.66,202.65,39.00822591]
[1753225544514,0.74,202.66,202.65,34.6]
[1753225544713,0.74,202.66,202.65,39.00822591]
[1753225545230,0.74,202.66,202.65,34.6]
[1753225546128,0.74,202.66,202.65,39.00822591]
[1753225548642,0.74,202.66,202.65,34.6]
[1753225548938,0.74,202.66,202.65,39.00822591]
[1753225553548,0.06,202.66,202.65,43.94284224]
[1753225553948,0.73,202.66,202.65,43.94284224]
[1753225554547,0.73,202.66,202.65,34.6]
[1753225555019,0.73,202.66,202.65,39.00822591]
[1753225555644,0.73,202.66,202.65,43.94284224]
[1753225555943,0.73,202.66,202.65,39.00822591]
[1753225559044,0.06,202.66,202.65,43.94284224]
[1753225561946,0.06,202.66,202.65,51.54284224]
[1753225564944,0.73,202.66,202.65,47.13461633]
[1753225565154,0.73,202.66,202.65,46.58822591]
[1753225565535,0.73,202.66,202.65,34.58]
[1753225565842,0.73,202.66,202.65,38.98822591]
[1753225567139,0.73,202.66,202.65,43.92284224]
[1753225567848,0.06,202.66,202.65,43.92284224]
[1753225568840,0.06,202.66,202.65,43.96284224]
[1753225569050,0.06,202.66,202.65,43.92284224]
[1753225571050,0.06,202.66,202.65,39.51461633]
[1753225571252,0.06,202.66,202.65,43.92284224]
[1753225575158,0.06,202.66,202.65,43.96284224]
[1753225575335,0.73,202.71,202.65,62.51548307]
[1753225575535,0.73,202.71,202.7,4.40822591]
[1753225575834,0.73,202.71,202.7,38.98822591]
[1753225577146,0.73,202.71,202.7,43.92162502]
[1753225583850,0.73,202.71,202.7,48.32985093]
[1753225584369,0.06,202.71,202.7,48.32985093]
[1753225584566,0.06,202.71,202.7,43.92162502]
[1753225584567,0.78,202.71,202.7,43.92162502]
[1753225585769,0.78,202.71,202.7,38.98822591]
[1753225586259,0.78,202.71,202.7,43.92162502]
[1753225586654,0.06,202.71,202.7,48.32985093]
[1753225588364,0.06,202.71,202.7,39.51339911]
[1753225588559,0.06,202.71,202.7,48.32985093]
[1753225589861,0.06,202.71,202.7,48.30985093]
[1753225595389,0.78,202.71,202.7,48.30985093]
[1753225595620,0.06,202.71,202.7,48.30985093]
[1753225596879,0.06,202.71,202.7,39.49339911]
[1753225596880,0.78,202.71,202.7,39.49339911]
[1753225597059,0.78,202.71,202.7,43.90162502]
[1753225597383,0.78,202.71,202.7,48.30985093]
[1753225597584,0.06,202.71,202.7,48.30985093]
[1753225597977,0.78,202.71,202.7,39.49339911]
[1753225598174,0.78,202.71,202.7,43.90162502]
[1753225598362,0.06,202.71,202.7,43.90162502]
[1753225599081,0.06,202.71,202.7,48.30985093]
[1753225601180,0.78,202.71,202.68,4.93388592]
[1753225601368,0.78,202.71,202.69,38.96822591]
[1753225601567,0.78,202.71,202.7,4.40822591]
[1753225604166,0.78,202.71,202.69,38.96822591]
[1753225604567,0.78,202.71,202.69,4.40822591]
[1753225604882,0.78,202.71,202.7,34.56]
[1753225605193,5.71315573,202.71,202.7,34.56]
[1753225605392,10.12138164,202.71,202.65,4.40822591]
[1753225605690,0.72,202.7,202.66,34.56]
[1753225606091,2.3072,202.7,202.66,34.56]
[1753225606477,0.72,202.69,202.66,34.56]
[1753225606880,10.06190433,202.69,202.66,34.56]
[1753225607080,5.12822591,202.68,202.66,34.56]
[1753225607268,0.69,202.67,202.66,34.56]
[1753225609289,0.69,202.67,202.66,38.96822591]
[1753225613097,0.06,202.71,202.66,38.96822591]
[1753225613295,0.69,202.67,202.66,34.56]
[1753225613503,0.69,202.67,202.66,38.96822591]
[1753225614084,0.69,202.67,202.66,43.90259875]
[1753225615892,0.69,202.67,202.66,39.49437284]
[1753225616096,0.69,202.67,202.66,43.90259875]
[1753225616287,0.69,202.67,202.66,39.49437284]
[1753225616485,0.69,202.67,202.66,43.90259875]
[1753225619806,0.06,202.71,202.66,43.90259875]
[1753225620007,0.69,202.7,202.67,4.40822591]
[1753225620196,0.69,202.7,202.67,34.56]
[1753225620906,0.69,202.7,202.67,38.96822591]
[1753225621483,0.69,202.7,202.67,34.56]
[1753225622898,0.69,202.7,202.61,9.37375764]
[1753225622899,4.40822591,202.68,202.61,9.37375764]
[1753225623216,5.09822591,202.67,202.62,39.49534495]
[1753225623414,0.69,202.66,202.63,4.40822591]
[1753225623617,0.69,202.66,202.64,34.56]
[1753225626620,4.40822591,202.65,202.61,0.03]
[1753225626910,0.69,202.66,202.62,38.96822591]
[1753225627104,0.69,202.64,202.62,38.96822591]
[1753225627308,0.69,202.63,202.62,38.96822591]
[1753225628090,0.69,202.63,202.62,43.90357286]
[1753225630210,0.69,202.63,202.62,34.56]
[1753225631706,0.69,202.63,202.61,0.03]
[1753225631907,0.69,202.63,202.62,34.56]
[1753225633311,0.69,202.63,202.62,38.96822591]
[1753225634230,0.69,202.63,202.62,34.56]
[1753225635803,0.69,202.63,202.61,0.03]
[1753225636012,0.69,202.63,202.62,34.56]